bitfinex/quotes_ETHUSD_20250702
["timestamp","ask_amount","ask_price","bid_price","bid_amount"]
[1751473091617,11.5929,2545.8,2545.7,0.02]
[1751473091816,1.5832,2546.2,2545.7,0.02]
[1751473092351,30.0,2546.1,2545.7,0.02]
[1751473092519,1.5832,2546.2,2545.7,0.02]
[1751473093151,10.0,2546.0,2545.7,0.02]
[1751473093349,40.0,2545.8,2545.7,0.02]
[1751473093755,1.5832,2546.2,2545.7,0.02]
[1751473094758,20.0,2546.6,2545.7,0.02]
[1751473094759,1.6228,2546.6,2545.7,0.02]
[1751473094935,1.6228,2546.6,2545.7,4.34501157]
[1751473095123,1.6228,2546.6,2545.7,0.4168228]
[1751473095318,40.0,2547.3,2545.9,3.92773422]
[1751473095522,30.0,2547.3,2545.7,0.02]
[1751473095753,30.0,2547.4,2545.7,0.02]
[1751473096330,30.0,2547.4,2545.8,3.92803833]
[1751473096550,1.6228,2547.5,2546.0,1.5805]
[1751473096725,30.0,2547.4,2546.1,3.016]
[1751473096932,1.6228,2547.5,2546.2,3.92741285]
[1751473097259,10.0,2547.3,2546.2,5.1725618]
[1751473097558,10.0,2547.3,2546.2,1.24516417]
[1751473097856,0.196,2546.5,2546.0,1.7765]
[1751473098155,0.196,2546.1,2545.7,3.232]
[1751473098555,10.0,2547.3,2545.7,3.036]
[1751473098759,0.196,2546.4,2546.0,3.92764267]
[1751473099256,0.196,2546.4,2546.1,3.92748881]
[1751473099423,10.0,2547.3,2545.8,1.89884696]
[1751473099624,0.196,2546.7,2546.2,4.1233425]
[1751473099825,0.196,2546.7,2546.2,1.00107949]
[1751473100033,0.196,2546.7,2546.2,0.196]
[1751473100336,0.196,2546.7,2546.3,3.92718744]
[1751473100525,0.196,2546.7,2546.4,3.92711278]
[1751473100856,0.196,2546.7,2546.3,3.92723145]
[1751473101157,3.92565675,2547.4,2545.8,8.81379056]
[1751473101358,0.196,2546.5,2546.0,0.196]
[1751473101584,0.196,2546.7,2546.2,0.196]
[1751473101759,1.6228,2547.5,2546.2,0.196]
[1751473101760,1.6228,2547.5,2546.6,3.92680436]
[1751473101963,0.196,2547.2,2546.7,4.51530794]
[1751473102163,0.196,2547.2,2546.8,3.92646185]
[1751473102328,0.196,2547.2,2547.1,3.92603352]
[1751473102664,0.196,2547.2,2547.0,3.92613059]
[1751473102858,0.196,2547.2,2547.1,3.92603352]
[1751473103062,0.01,2547.4,2547.3,3.92572527]
[1751473103579,0.01,2547.4,2547.3,4.12172527]
[1751473103885,0.01,2547.4,2547.1,1.5152]
[1751473104249,0.01,2547.4,2547.3,3.92572527]
[1751473104443,0.01,2547.4,2547.3,0.196]
[1751473104655,0.01,2547.4,2547.1,1.5152]
[1751473104857,0.01,2547.4,2547.3,0.196]
[1751473105468,0.01,2547.4,2546.7,1.5483]
[1751473105469,0.196,2547.3,2546.8,10.272]
[1751473106198,0.196,2546.8,2546.5,9.435]
[1751473106348,0.196,2546.6,2546.4,10.072]
[1751473106750,1.6427,2547.4,2546.4,10.072]
[1751473106965,0.196,2546.9,2546.5,0.196]
[1751473107198,0.196,2546.6,2546.2,2.987]
[1751473107484,1.6427,2547.4,2546.2,2.987]
[1751473107659,0.196,2546.7,2546.3,0.196]
[1751473107858,10.0,2547.3,2546.2,2.987]
[1751473108063,0.196,2546.6,2546.2,2.987]
[1751473108447,0.196,2547.2,2546.5,4.12295471]
[1751473108650,0.196,2547.2,2546.5,0.196]
[1751473108858,0.196,2547.2,2546.8,0.196]
[1751473109063,0.196,2547.2,2546.8,14.17240971]
[1751473109264,0.196,2547.2,2546.8,10.246]
[1751473109680,0.196,2547.2,2546.8,15.1970613]
[1751473109888,0.196,2547.2,2546.8,11.2706]
[1751473110075,0.196,2547.2,2546.8,15.19703285]
[1751473110658,0.196,2547.2,2546.8,11.2706]
[1751473110969,0.196,2547.2,2546.8,1.2206]
[1751473111158,0.196,2547.2,2546.9,10.05]
[1751473111666,0.196,2547.2,2546.8,0.196]
[1751473111872,0.196,2547.0,2546.7,10.05]
[1751473112457,0.196,2547.0,2546.5,4.12295501]
[1751473112458,1.5405,2546.9,2546.5,0.196]
[1751473112671,1.5405,2546.9,2545.8,3.92803833]
[1751473112873,1.5405,2547.3,2546.5,3.92680478]
[1751473113096,0.196,2547.1,2546.6,0.196]
[1751473113458,1.5405,2547.3,2546.3,2.987]
[1751473113662,0.196,2546.9,2546.7,10.05]
[1751473115771,0.01,2547.4,2546.7,10.05]
[1751473115977,0.196,2547.1,2546.7,13.97661145]
[1751473116171,0.196,2547.1,2546.8,3.92649043]
[1751473116479,1.5405,2547.7,2546.1,1.5677]
[1751473116480,0.4591809,2547.7,2546.1,1.5677]
[1751473116706,30.0,2547.2,2546.2,10.049]
[1751473116863,10.0,2547.3,2546.2,10.049]
[1751473117059,10.0,2547.4,2546.2,10.049]
[1751473117591,13.92526427,2547.6,2546.2,10.049]
[1751473117789,10.0,2547.4,2546.2,12.29488163]
[1751473117992,10.0,2547.4,2546.2,16.2222583]
[1751473118517,10.0,2547.4,2546.2,16.22225471]
[1751473118698,10.0,2547.4,2546.2,12.29488163]
[1751473118899,10.0,2547.6,2546.2,16.22229478]
[1751473119096,10.0,2547.6,2546.3,2.07769948]
[1751473119308,10.0,2547.4,2546.3,2.07769948]
[1751473119513,10.0,2547.3,2546.3,2.07769948]
[1751473119706,1.6655,2547.5,2546.4,3.92700656]
[1751473119909,1.6655,2547.5,2546.4,3.92706053]
[1751473120125,1.6655,2547.5,2546.5,4.52733067]
[1751473120287,1.6655,2547.5,2546.6,3.92672401]
[1751473120489,1.6655,2547.5,2546.7,3.92662633]
[1751473120703,1.6655,2547.5,2546.8,10.048]
[1751473121910,1.6655,2547.5,2546.5,0.600476]
[1751473121911,30.0,2547.4,2546.5,0.600476]
[1751473122110,30.0,2547.4,2546.9,10.047]
[1751473122310,1.6655,2547.5,2546.9,10.047]
[1751473122546,30.0,2547.4,2546.9,10.047]
[1751473122841,30.0,2547.4,2546.7,10.046]
[1751473122985,30.0,2547.4,2546.4,10.046]
[1751473123596,1.6655,2547.5,2546.5,3.92693003]
[1751473123808,1.6655,2547.5,2546.5,3.9268811]
[1751473124399,1.6655,2547.5,2546.6,3.92679789]
[1751473124921,1.6755,2547.5,2546.6,3.9267306]
[1751473125123,0.01,2547.5,2546.7,0.7853687]
[1751473125424,0.01,2547.5,2546.9,3.92622901]
[1751473125590,0.01,2547.5,2547.0,13.97118348]
[1751473126134,0.01,2547.5,2547.0,10.045]
[1751473126510,0.196,2547.4,2547.0,10.045]
[1751473126710,0.01,2547.5,2547.4,3.92557117]
[1751473127101,0.01,2547.5,2547.4,0.196]
[1751473127300,0.01,2547.5,2547.4,4.12157117]
[1751473127708,0.01,2547.5,2547.4,7.10857117]
[1751473127914,0.01,2548.3,2548.0,1.569]
[1751473128127,0.01,2548.5,2548.4,3.92403076]
[1751473128507,0.01,2548.5,2548.4,4.12003076]
[1751473128714,0.01,2548.5,2548.4,5.70563076]
[1751473129553,0.01,2548.5,2548.4,18.73363076]
[1751473129697,0.01,2548.5,2548.4,7.97141058]
[1751473129904,0.01,2548.5,2548.4,0.196]
[1751473130999,0.01,2548.5,2548.4,5.70563076]
[1751473132836,0.01,2548.5,2548.4,14.7556]
[1751473133038,0.01,2548.5,2548.4,18.67963076]
[1751473133495,0.01,2548.5,2548.4,19.22963076]
[1751473133701,1.6363,2549.9,2548.5,6.04417679]
[1751473133702,1e-08,2548.6,2548.5,6.04417679]
[1751473133903,1.6521,2550.3,2549.5,3.92224598]
[1751473134103,0.196,2550.0,2549.6,13.166]
[1751473134930,0.01,2550.6,2549.8,3.92176803]
[1751473135130,0.01,2550.6,2549.9,3.92170475]
[1751473135131,0.196,2550.5,2549.9,3.92170475]
[1751473135317,0.196,2550.5,2550.1,4.11741484]
[1751473135520,0.01,2550.6,2550.2,0.196]
[1751473136308,0.01,2550.6,2549.7,1.3166]
[1751473136309,0.01,2550.6,2550.3,10.03]
[1751473136534,1.6521,2550.5,2550.4,10.03]
[1751473136741,0.01,2550.6,2550.4,10.03]
[1751473136962,0.01,2550.6,2550.4,11.229]
[1751473137453,0.01,2550.6,2550.5,3.92079984]
[1751473138245,0.1952,2551.6,2550.6,1.5411]
[1751473138448,1.5972,2552.1,2551.3,0.1952]
[1751473138742,1.5972,2552.1,2550.8,2.938]
[1751473138917,0.1952,2551.4,2550.9,10.221]
[1751473139118,0.1952,2551.4,2550.8,2.938]
[1751473139119,1.5069,2551.3,2550.2,1.5411]
[1751473139319,0.196,2550.8,2550.3,10.024]
[1751473139525,0.196,2550.5,2550.3,10.024]
[1751473139723,1.5069,2551.3,2550.3,10.024]
[1751473139937,30.0,2551.1,2550.4,10.02]
[1751473140136,30.0,2551.1,2550.0,2.937]
[1751473140137,0.196,2550.3,2550.0,2.937]
[1751473140310,0.196,2550.3,2550.1,10.02]
[1751473140516,14.13288081,2551.6,2549.6,9.425]
[1751473140517,1.7639,2550.1,2549.6,9.425]
[1751473140748,1.7639,2550.1,2549.7,10.019]
[1751473140749,1.5679,2550.1,2549.7,10.019]
[1751473141059,1.5086,2551.4,2550.8,3.92024487]
[1751473141243,1.5086,2551.4,2550.9,10.019]
[1751473143146,1.5086,2551.4,2551.0,10.016]
[1751473143423,0.01,2551.7,2549.6,9.425]
[1751473143424,1.5913,2551.2,2550.5,2.936]
[1751473143654,10.0,2551.1,2550.6,10.014]
[1751473143855,30.0,2551.0,2549.6,9.425]
[1751473144189,1.5802,2550.7,2549.7,12.949]
[1751473144388,30.0,2550.6,2549.7,12.949]
[1751473144585,1.5802,2550.5,2549.8,10.013]
[1751473144804,10.0,2550.4,2549.9,10.013]
[1751473144990,30.0,2550.4,2549.9,10.013]
[1751473145464,1.5831,2550.3,2549.8,10.012]
[1751473146656,1.5831,2550.3,2549.9,10.01]
[1751473146901,1.5831,2550.3,2548.8,1.6007]
[1751473147090,30.0,2550.2,2549.0,3.92307394]
[1751473147385,1.5831,2550.3,2549.1,1.68690739]
[1751473147603,1.5831,2550.3,2549.3,3.92253341]
[1751473147756,1.5831,2550.3,2549.4,10.009]
[1751473147955,1.5831,2550.3,2549.4,13.93137516]
[1751473148168,1.5831,2550.3,2549.1,1.68690739]
[1751473148373,1.6415,2550.0,2549.2,2.936]
[1751473148596,1.6415,2550.0,2549.3,10.008]
[1751473149298,1.6415,2550.0,2549.3,13.93057333]
[1751473149509,1.6741,2550.4,2549.3,13.23545733]
[1751473150008,1.6741,2550.4,2549.8,3.9217393]
[1751473150306,1.6741,2550.4,2549.9,12.943]
[1751473150509,1.6741,2550.4,2549.3,7.1500216]
[1751473150734,30.0,2549.4,2547.3,1.48667582]
[1751473150883,1.6379,2548.9,2547.4,3.92546602]
[1751473151080,0.196,2547.8,2547.5,13.93132983]
[1751473151420,1.6379,2548.1,2547.5,0.196]
[1751473151733,0.25814126,2548.0,2547.2,2.936]
[1751473152009,1.6379,2548.1,2547.3,10.005]
[1751473152375,1.6379,2548.1,2547.0,0.02]
[1751473152574,30.0,2548.0,2547.1,10.004]
[1751473152981,1.6379,2548.1,2547.1,10.004]
[1751473153377,1.6379,2548.1,2547.2,3.9258746]
[1751473153777,1.5795,2548.5,2547.1,10.004]
[1751473154013,1.5795,2548.5,2547.7,3.92502508]
[1751473154328,1.5795,2548.5,2547.5,1.5953]
[1751473154329,1.5795,2548.5,2547.8,12.94]
[1751473154472,1.5795,2548.5,2547.8,16.86485352]
[1751473154679,10.0,2549.6,2548.1,3.9244744]
[1751473154909,30.0,2549.5,2548.1,3.92446873]
[1751473155076,1.5795,2549.3,2548.2,3.92424662]
[1751473155280,1.5795,2549.3,2548.3,3.92417108]
[1751473155501,10.0,2549.1,2548.4,10.005]
[1751473155687,30.0,2549.2,2548.4,10.005]
[1751473156010,10.0,2549.1,2548.4,10.005]
[1751473156223,30.0,2549.2,2548.4,10.005]
[1751473156439,30.0,2549.2,2547.9,3.92478128]
[1751473156737,30.0,2549.2,2548.1,2.937]
[1751473157489,1.5795,2549.3,2548.3,3.92409629]
[1751473157688,1.5795,2549.3,2548.1,6.86147153]
[1751473158040,1.5795,2549.3,2548.1,6.86147359]
[1751473158196,1.5795,2549.3,2548.3,3.92418294]
[1751473158399,30.0,2549.2,2548.1,2.937]
[1751473159194,40.0,2548.9,2548.2,10.004]
[1751473159496,30.0,2548.7,2547.5,2.937]
[1751473159714,1.5684,2548.8,2548.4,0.02]
[1751473160991,1.6597,2548.1,2546.6,2.922]
[1751473161222,1.6597,2547.8,2546.6,2.922]
[1751473161422,30.0,2547.5,2546.6,2.922]
[1751473162131,1.6597,2547.8,2546.6,3.92668896]
[1751473162345,0.196,2547.4,2547.0,0.216]
[1751473162530,30.0,2547.7,2547.0,0.02]
[1751473162827,0.196,2547.2,2547.0,0.02]
[1751473164148,10.0,2547.6,2547.0,0.02]
[1751473164364,5.584672,2547.8,2547.0,0.02]
[1751473164365,40.0,2547.7,2547.0,0.02]
[1751473164523,30.0,2547.7,2547.0,0.02]
[1751473164964,1.6597,2547.8,2547.0,0.02]
[1751473165170,0.196,2547.3,2547.0,0.02]
[1751473165520,30.0,2547.7,2547.0,0.02]
[1751473166316,0.196,2547.3,2547.0,0.02]
[1751473166520,1.6597,2547.8,2547.0,0.216]
[1751473166760,0.196,2547.5,2547.1,3.92593624]
[1751473167054,0.196,2547.7,2547.2,0.196]
[1751473167225,0.196,2547.7,2547.2,4.12185687]
[1751473167413,0.196,2547.7,2547.2,4.12175314]
[1751473167618,0.196,2547.7,2547.2,4.86579058]
[1751473167815,0.196,2547.7,2547.4,3.92546288]
[1751473168015,0.196,2547.9,2547.5,12.924]
[1751473169161,1.625,2548.6,2547.6,3.92526299]
[1751473169457,0.196,2548.2,2547.8,0.196]
[1751473169751,0.196,2548.2,2547.8,4.53302424]
[1751473169953,0.196,2548.2,2547.9,3.92477325]
[1751473170122,0.196,2548.2,2547.8,6.05337502]
[1751473170452,1.625,2548.6,2547.8,1.9325013]
[1751473170620,0.196,2548.5,2548.0,0.196]
[1751473170821,0.196,2548.5,2548.2,3.92426719]
[1751473171040,0.196,2548.5,2548.3,6.84715699]
[1751473171355,0.196,2548.8,2548.3,7.04314134]
[1751473171555,30.0,2548.8,2547.5,1.5204]
[1751473171723,0.196,2548.0,2547.8,2.923]
[1751473171920,1.625,2548.9,2547.8,2.923]
[1751473172122,0.196,2548.2,2547.8,3.119]
[1751473173158,0.62759985,2549.9,2547.8,3.119]
[1751473173159,30.0,2549.6,2548.2,3.92426325]
[1751473173461,30.0,2549.5,2548.3,9.994]
[1751473173681,1.5871,2549.4,2548.3,13.91818081]
[1751473173882,1.5871,2549.4,2548.3,9.994]
[1751473174085,1.5871,2549.4,2548.3,13.91805745]
[1751473174381,1.5871,2549.4,2548.3,9.994]
[1751473174679,1.5871,2549.4,2548.4,3.9240172]
[1751473174910,1.5871,2549.4,2548.5,2.923]
[1751473175180,1.5871,2549.4,2548.5,7.26109599]
[1751473175384,1.5871,2549.4,2548.7,3.92344804]
[1751473175587,10.0,2549.7,2548.6,5.54135377]
[1751473175886,35.50884051,2549.9,2548.6,1.6177]
[1751473176179,1.5871,2549.9,2548.8,3.92340709]
[1751473176382,1.5871,2549.9,2548.9,9.99]
[1751473176546,10.0,2549.7,2548.9,9.99]
[1751473176746,30.0,2549.8,2548.9,13.9132427]
[1751473176959,1.5871,2549.9,2549.0,3.92301698]
[1751473177252,1.5871,2549.9,2549.1,3.92291427]
[1751473177443,1.5447,2550.3,2549.2,6.84577097]
[1751473177643,1.5447,2550.3,2549.2,2.923]
[1751473177880,1.5447,2550.3,2549.3,5.49410707]
[1751473178070,1.5447,2550.3,2549.4,3.92248664]
[1751473178269,1.5447,2550.3,2549.5,9.987]
[1751473180183,1.5447,2550.3,2549.6,12.908]
[1751473181894,0.01,2550.4,2549.6,12.908]
[1751473182280,0.01,2550.4,2549.7,3.92203004]
[1751473182685,0.01,2550.4,2549.8,3.92186827]
[1751473182896,0.196,2550.3,2549.9,0.196]
[1751473183097,30.0,2550.3,2549.8,9.978]
[1751473183296,1.5325,2550.2,2549.6,2.922]
[1751473185806,1.5325,2550.2,2549.5,19.405]
[1751473185807,1.5325,2550.2,2549.5,9.428]
[1751473185979,1.5325,2550.2,2549.6,9.974]
[1751473186774,1.5325,2550.2,2549.7,9.972]
[1751473187006,30.0,2550.1,2549.5,12.35]
[1751473187209,30.0,2550.1,2549.6,9.971]
[1751473187809,10.0,2549.9,2549.5,2.922]
[1751473188015,3.93101721,2550.4,2548.9,2.922]
[1751473188016,15.43542619,2549.7,2548.9,2.922]
[1751473188180,5.43539782,2549.7,2548.9,2.922]
[1751473188382,15.43539782,2549.7,2548.9,2.922]
[1751473188713,30.0,2549.5,2548.9,2.922]
[1751473189018,1.5133,2549.7,2548.9,2.922]
[1751473189019,10.0,2549.6,2548.9,2.922]
[1751473189312,30.0,2549.5,2548.9,2.922]
[1751473189926,1.5133,2549.7,2548.9,2.922]
[1751473190112,1.5133,2549.7,2549.0,1.6227]
[1751473190314,1.5811,2550.2,2549.0,1.6227]
[1751473190516,1.5811,2550.2,2549.1,0.84679343]
[1751473190884,0.01,2550.4,2549.1,0.84679343]
[1751473191212,0.01,2550.4,2549.3,3.92257736]
[1751473191415,0.01,2550.4,2549.4,9.964]
[1751473191594,0.01,2550.4,2549.4,13.88647188]
[1751473191796,0.01,2550.4,2549.4,15.66739212]
[1751473191994,0.01,2550.4,2549.4,15.66735188]
[1751473192189,0.01,2550.4,2549.6,3.92203126]
[1751473192389,0.01,2550.4,2549.7,2.903]
[1751473192616,0.01,2550.4,2549.7,6.82502239]
[1751473192917,0.01,2550.4,2549.8,0.40428898]
[1751473193093,0.196,2550.2,2549.9,9.961]
[1751473193744,0.01,2550.4,2549.9,9.959]
[1751473194244,0.196,2549.9,2549.7,2.903]
[1751473194415,30.0,2550.3,2549.8,9.958]
[1751473194610,0.01,2550.4,2549.8,9.958]
[1751473194927,0.196,2550.0,2549.8,9.958]
[1751473196147,0.196,2550.0,2549.7,2.903]
[1751473196312,0.01,2550.4,2549.7,2.903]
[1751473196313,0.01,2550.4,2549.8,9.956]
[1751473196715,10.01,2550.4,2549.8,9.956]
[1751473196940,0.01,2550.4,2549.8,9.956]
[1751473197483,10.56,2550.4,2549.7,2.903]
[1751473197614,30.0,2550.3,2549.7,12.854]
[1751473197809,30.0,2550.3,2549.7,2.903]
[1751473198012,30.0,2550.1,2549.7,12.853]
[1751473198243,10.0,2550.2,2549.0,0.196]
[1751473198444,10.19554996,2549.8,2548.6,11.0371]
[1751473198758,0.196,2548.9,2548.7,9.949]
[1751473200433,1.642,2549.0,2548.7,9.946]
[1751473200625,0.196,2548.7,2548.6,9.945]
[1751473201051,1.6295,2549.4,2548.6,9.945]
[1751473201052,0.196,2549.0,2548.6,9.945]
[1751473201356,1.6295,2549.8,2548.8,1.5701]
[1751473201559,0.196,2549.4,2548.9,0.196]
[1751473201745,0.196,2549.5,2549.1,4.11887364]
[1751473201946,0.196,2549.5,2549.2,10.35588736]
[1751473202159,0.01,2550.3,2549.5,3.92222405]
[1751473202336,0.01,2550.3,2549.9,3.92169667]
[1751473202656,0.01,2550.3,2550.1,0.196]
[1751473203224,0.01,2550.3,2550.2,9.942]
[1751473203837,0.206,2550.3,2550.2,9.942]
[1751473204527,0.206,2550.3,2550.2,9.742]
[1751473204722,0.206,2550.3,2550.2,9.938]
[1751473204922,0.206,2550.3,2548.9,19.426]
[1751473204923,1.6295,2550.2,2549.4,2.903]
[1751473205145,1.6295,2550.2,2549.5,9.938]
[1751473205456,0.196,2549.7,2549.5,9.938]
[1751473207965,0.196,2549.7,2549.6,3.92218387]
[1751473208540,0.196,2549.7,2549.5,13.8602696]
[1751473208744,0.196,2549.7,2549.5,9.938]
[1751473209251,0.196,2549.7,2549.6,9.932]
[1751473209654,0.01,2550.3,2549.6,9.932]
[1751473209851,0.196,2550.0,2549.8,3.92185388]
[1751473210056,0.01,2550.3,2549.9,3.92169239]
[1751473210364,0.196,2550.2,2550.0,9.926]
[1751473210659,0.01,2550.3,2550.0,16.74952295]
[1751473210861,0.01,2550.3,2550.1,5.58778953]
[1751473211072,0.01,2550.3,2550.2,3.92126107]
[1751473211235,0.01,2550.3,2550.1,5.78380923]
[1751473211430,0.01,2550.3,2550.2,3.92126107]
[1751473214083,1e-08,2550.3,2550.2,3.92126107]
[1751473214292,1e-08,2550.4,2550.3,21.15601432]
[1751473214470,1e-08,2550.4,2550.3,15.45130732]
[1751473214790,1e-08,2550.4,2550.3,15.64730732]
[1751473215008,1e-08,2550.4,2550.3,19.1679589]
[1751473215350,1e-08,2550.6,2550.5,3.92079984]
[1751473215555,1e-08,2550.6,2550.5,5.73099984]
[1751473215757,1e-08,2550.6,2550.5,5.53499984]
[1751473216060,1e-08,2550.6,2549.9,5.2]
[1751473216279,1e-08,2550.6,2550.1,3.9213228]
[1751473216489,1e-08,2550.6,2550.2,9.911]
[1751473216862,1e-08,2550.6,2550.2,13.83219018]
[1751473217665,1e-08,2550.6,2550.3,3.92110732]
[1751473217890,1e-08,2550.6,2550.5,3.92079984]
[1751473218057,1e-08,2550.6,2550.5,14.90117295]
[1751473218755,1e-08,2550.6,2550.5,7.89717295]
[1751473218984,1e-08,2550.6,2550.5,17.80117295]
[1751473219288,1e-08,2550.6,2550.5,1.07437311]
[1751473219617,1e-08,2550.6,2550.5,9.903]
[1751473219904,1e-08,2550.6,2550.0,2.902]
[1751473220193,1e-08,2550.6,2550.1,9.902]
[1751473220389,0.55,2550.5,2549.8,2.901]
[1751473220596,0.55,2550.3,2549.8,2.901]
[1751473220777,1.6009,2550.2,2549.8,2.901]
[1751473220957,0.55,2549.8,2549.1,4.38767582]
[1751473221153,0.55,2549.8,2549.1,2.901]
[1751473221154,0.55,2549.6,2549.1,2.901]
[1751473221356,0.55,2549.4,2549.1,2.901]
[1751473221579,0.55,2549.2,2549.1,9.897]
[1751473221784,0.55,2549.2,2548.8,1.48667582]
[1751473221785,1.63,2549.1,2548.8,1.48667582]
[1751473222063,0.55,2549.0,2548.8,11.38267582]
[1751473222556,0.55,2549.0,2548.8,9.896]
[1751473223093,1.63,2549.1,2548.8,9.896]
[1751473223399,0.55,2548.6,2548.4,2.23802916]
[1751473223579,42.35344996,2548.5,2548.4,0.02]
[1751473223894,36.08177679,2548.5,2548.4,0.02]
[1751473224079,42.1579,2548.5,2548.4,0.02]
[1751473224279,46.08177679,2548.5,2548.4,0.02]
[1751473224588,42.1579,2548.5,2548.4,0.02]
[1751473225202,32.1579,2548.5,2548.4,0.02]
[1751473225420,46.08177679,2548.5,2548.4,0.02]
[1751473225909,1.5454,2547.9,2547.6,2.21802916]
[1751473226068,0.196,2547.6,2547.5,2.21802916]
[1751473226400,1.5454,2547.9,2547.4,2.21802916]
[1751473226897,1.5454,2547.9,2547.3,9.909]
[1751473226898,0.196,2547.4,2547.3,9.909]
[1751473227277,1.5454,2547.9,2547.3,15.11472527]
[1751473227473,0.196,2547.7,2547.3,11.189]
[1751473227679,0.196,2547.7,2547.3,0.02]
[1751473227876,30.0,2547.7,2547.3,0.02]
[1751473228890,1.5454,2547.9,2547.3,0.02]
[1751473229107,11.78306797,2548.9,2547.3,5.71779596]
[1751473229108,0.196,2547.7,2547.3,5.71779596]
[1751473229306,0.196,2547.7,2547.3,1.7921]
[1751473229476,0.196,2547.7,2547.3,7.28030286]
[1751473230003,0.196,2547.7,2547.3,3.35458873]
[1751473230309,30.0,2547.8,2547.4,9.885]
[1751473230604,1.5294,2547.9,2547.4,9.885]
[1751473230982,30.0,2547.8,2547.4,9.885]
[1751473231194,0.55,2547.7,2547.3,0.02]
[1751473231373,0.55,2547.5,2547.3,0.02]
[1751473232085,1.5294,2547.9,2547.3,0.02]
[1751473232302,30.0,2547.6,2547.3,0.02]
[1751473232473,0.55,2547.8,2547.3,0.02]
[1751473232675,0.55,2547.8,2547.4,0.02]
[1751473233080,0.55,2547.6,2547.4,0.02]
[1751473233497,10.55,2547.7,2547.4,0.02]
[1751473233826,30.0,2547.6,2547.4,0.02]
[1751473234607,1.5294,2547.9,2547.4,0.02]
[1751473235002,30.0,2547.8,2547.4,0.02]
[1751473236037,43.92533216,2547.6,2547.4,0.02]
[1751473236183,40.0,2547.5,2547.4,0.02]
[1751473236380,45.98831707,2547.5,2547.4,0.02]
[1751473237025,4.47557117,2547.4,2547.3,0.02]
[1751473237188,40.55,2547.0,2546.1,2.873]
[1751473237384,2.0656,2546.4,2545.9,0.02]
[1751473237730,53.84866797,2546.4,2545.9,0.02]
[1751473237896,57.77578075,2546.4,2545.9,0.02]
[1751473238718,27.77578075,2546.4,2545.9,0.02]
[1751473238887,57.77578075,2546.4,2545.9,0.02]
[1751473239280,53.84866797,2546.4,2545.9,0.02]
[1751473239516,57.77578075,2546.4,2545.9,0.02]
[1751473239712,31.5156,2546.4,2545.9,0.02]
[1751473239916,1.5156,2546.4,2545.9,0.02]
[1751473240118,31.5156,2546.4,2545.9,0.02]
[1751473241506,35.44271278,2546.4,2545.9,0.02]
[1751473241710,31.5156,2546.4,2545.9,0.02]
[1751473242928,45.99271278,2546.4,2545.9,0.02]
[1751473243606,41.5156,2546.4,2545.9,0.02]
[1751473245236,45.99271278,2546.4,2545.9,0.02]
[1751473245696,14.15512684,2546.5,2545.0,0.02]
[1751473245697,30.0,2545.8,2545.0,0.02]
[1751473245890,50.22814124,2545.6,2545.0,0.02]
[1751473246098,30.0,2545.5,2545.0,0.02]
[1751473246294,0.196,2545.2,2545.0,0.02]
[1751473247431,20.22814124,2546.0,2545.0,0.02]
[1751473247432,30.0,2545.5,2545.0,0.02]
[1751473247643,30.0,2545.4,2545.0,0.02]
[1751473249452,0.196,2545.1,2545.0,0.02]
[1751473249601,10.0,2546.5,2545.0,1.5885]
[1751473249942,30.0,2548.2,2546.7,1.5685]
[1751473250159,40.0,2548.0,2546.8,12.722]
[1751473250457,40.22814124,2548.0,2546.8,12.722]
[1751473250603,30.0,2547.9,2546.8,2.876]
[1751473250966,0.01,2548.3,2547.2,3.92574742]
[1751473251105,30.0,2548.2,2546.9,1.5995]
[1751473251456,30.0,2548.2,2547.2,3.92586241]
[1751473251653,30.0,2548.2,2546.9,1.5995]
[1751473251936,0.01,2548.3,2547.2,3.92580261]
[1751473252153,30.0,2546.8,2546.2,0.53034031]
[1751473252332,13.40539676,2546.3,2545.0,0.02]
[1751473252641,30.0,2545.8,2545.0,0.02]
[1751473252802,40.0,2545.6,2545.0,0.02]
[1751473253004,30.0,2545.6,2545.0,0.02]
[1751473253408,30.0,2545.5,2545.0,0.02]
[1751473253605,3.92850859,2545.5,2545.0,0.02]
[1751473253820,3.9289941,2545.2,2545.0,0.02]
[1751473254019,3.92911869,2545.1,2545.0,0.02]
[1751473254241,13.92911869,2545.1,2545.0,0.02]
[1751473254411,3.92973631,2544.7,2543.9,2.858]
[1751473254745,3.92973631,2544.7,2543.9,0.02]
[1751473254746,30.0,2544.7,2543.9,0.02]
[1751473255209,33.92973631,2544.7,2543.9,0.02]
[1751473255644,3.93004519,2544.5,2543.9,0.02]
[1751473255847,30.0,2544.5,2543.9,0.02]